bitfinex-derivatives/quotes_SOLF0:USTF0_20260203
["timestamp","ask_amount","ask_price","bid_price","bid_amount"]
[1770123761927,38.36481797,102.9,102.85,39.11189503]
[1770123762625,47.12091797,102.9,102.85,39.11189503]
[1770123765332,47.12091797,102.9,102.85,41.53362973]
[1770123766033,49.54265267,102.9,102.85,39.11189503]
[1770123766632,49.54265267,102.9,102.85,47.87159503]
[1770123767728,40.78655267,102.9,102.86,38.11189503]
[1770123771125,40.78655267,102.9,102.86,46.87079503]
[1770123771728,38.36481797,102.9,102.86,46.87079503]
[1770123771933,50.7639356,102.92,102.86,46.87079503]
[1770123772430,39.5882009,102.91,102.86,46.87079503]
[1770123773030,51.21098808,102.93,102.87,51.78090834]
[1770123773636,42.45788808,102.93,102.87,51.78090834]
[1770123774129,40.03615338,102.92,102.87,51.78090834]
[1770123774336,40.03615338,102.92,102.87,43.02310834]
[1770123774637,42.45788808,102.91,102.85,44.02310834]
[1770123775537,51.21268808,102.91,102.85,52.78280834]
[1770123776135,48.79095338,102.91,102.86,2.4217347]
[1770123777333,48.79095338,102.91,102.86,45.44484304]
[1770123777935,40.03615338,102.91,102.87,45.44484304]
[1770123778134,40.03615338,102.91,102.87,43.02310834]
[1770123780040,40.03615338,102.91,102.86,8.7585]
[1770123780242,42.45788808,102.9,102.86,8.7585]
[1770123782048,42.45788808,102.88,102.85,1.0]
[1770123786850,40.03615338,102.9,102.85,1.0]
[1770123787050,29.14,102.96,102.87,43.02310834]
[1770123787246,2.4217347,102.93,102.87,43.02310834]
[1770123788443,2.4217347,102.93,102.89,8.7563]
[1770123789046,42.45788808,102.93,102.89,8.7563]
[1770123791150,27.55708808,102.93,102.88,179.24600834]
[1770123791347,2.4217347,102.94,102.89,43.02310834]
[1770123791750,2.4217347,102.94,102.9,51.77860834]
[1770123795751,330.96,102.97,102.91,51.77760834]
[1770123795752,42.45788808,102.97,102.91,51.77760834]
[1770123795952,42.45788808,102.97,102.91,43.02310834]
[1770123796455,42.45788808,102.99,102.92,51.77620834]
[1770123798254,42.45788808,102.99,102.93,51.77600834]
[1770123798756,40.03615338,102.98,102.93,43.02310834]
[1770123800056,42.45788808,103.0,102.93,43.02310834]
[1770123800256,2.4217347,102.98,102.93,43.02310834]
[1770123801455,2.4217347,102.98,102.93,51.77600834]
[1770123802145,2.4217347,102.98,102.93,43.02310834]
[1770123802344,2.4217347,103.0,102.94,47.06837685]
[1770123804564,43.45759263,103.0,102.94,47.06837685]
[1770123805958,49.78335793,103.0,102.94,38.31627685]
[1770123806156,43.12174123,102.99,102.94,38.31627685]
[1770123807462,51.86954123,102.99,102.94,38.31627685]
[1770123808359,51.86374745,102.99,102.94,38.31627685]
[1770123811560,46.39132151,103.01,102.94,38.31627685]
[1770123812265,46.39132151,103.01,102.94,47.06767685]
[1770123812767,48.50254466,103.0,102.94,38.31627685]
[1770123815266,36.14349746,102.99,102.94,38.31627685]
[1770123816671,44.89149746,102.99,102.94,38.31627685]
[1770123817569,8.7487,102.98,102.94,38.31627685]
[1770123817763,36.14349746,102.99,102.94,38.31627685]
[1770123818258,36.14349746,102.99,102.97,1.0]
[1770123818663,11.16364092,103.0,102.97,1.0]
[1770123818865,2.41594092,103.0,102.97,1.0]
[1770123823865,2.41594092,103.0,102.97,39.31627685]
[1770123824270,2.41594092,103.0,102.97,1.0]
[1770123827678,35.15172815,103.0,102.94,47.06817685]
[1770123834088,35.15172815,103.0,102.95,44.80752795]
[1770123834790,2.41594092,103.0,102.95,44.80752795]
[1770123837783,2.41594092,103.0,102.95,36.05632795]
[1770123837784,30.46431754,102.99,102.95,36.05632795]
[1770123837986,32.88025846,102.98,102.93,36.05632795]
[1770123838790,32.88025846,102.98,102.93,44.80862795]
[1770123840481,91.9856639,103.02,102.94,36.05632795]
[1770123840683,32.40160482,103.02,102.95,36.05632795]
[1770123840886,32.40160482,103.02,102.96,36.05632795]
[1770123841088,32.40160482,103.02,102.98,8.7486]
[1770123841392,32.40160482,103.02,102.98,44.80492795]
[1770123841791,32.40160482,103.02,102.98,36.05632795]
[1770123844187,2.41594092,103.02,102.98,36.05632795]
[1770123844392,39.91103465,103.04,102.98,44.80472795]
[1770123844595,39.91103465,103.04,102.98,36.05632795]
[1770123846288,39.91103465,103.04,102.98,44.80482795]
[1770123847798,28.13307414,103.03,102.98,44.80482795]
[1770123847993,28.13307414,103.03,102.98,36.05632795]
[1770123848197,30.54901506,103.02,102.94,36.05632795]
[1770123848395,30.37626767,103.0,102.94,36.05632795]
[1770123848697,30.37626767,103.0,102.94,44.80822795]
[1770123849091,30.37626767,103.0,102.94,36.05632795]
[1770123849298,2.41594092,102.98,102.94,36.05632795]
[1770123852898,27.96032675,102.99,102.94,36.05632795]
[1770123853098,2.41594092,102.98,102.94,36.05632795]
[1770123853502,29.41288258,102.98,102.92,36.05632795]
[1770123854596,2.41594092,102.98,102.92,44.80992795]
[1770123855096,2.41594092,102.98,102.92,54.51065074]
[1770123855301,2.41594092,102.98,102.93,36.05632795]
[1770123855501,2.41594092,102.98,102.93,44.80912795]
[1770123856407,2.41594092,103.0,102.94,8.7519]
[1770123856603,2.41594092,103.0,102.95,36.05632795]
[1770123858508,28.23243205,103.0,102.93,36.05632795]
[1770123858805,28.23243205,102.98,102.93,36.05632795]
[1770123859197,36.98123205,102.98,102.93,36.05632795]
[1770123862610,2.41594092,102.99,102.93,36.05632795]
[1770123864206,2.41594092,102.99,102.93,44.80842795]
[1770123864406,2.41594092,102.99,102.93,36.05632795]
[1770123865305,2.41594092,102.99,102.94,8.7521]
[1770123865609,2.41594092,102.99,102.95,34.45503833]
[1770123868411,2.41561643,102.99,102.95,34.45503833]
[1770123870011,11.16371643,102.99,102.95,34.45503833]
[1770123873516,34.81709772,102.99,102.95,34.45503833]
[1770123883914,8.7488,102.98,102.95,34.45503833]
[1770123884316,8.7488,102.98,102.93,34.45503833]
[1770123892211,26.06899772,102.99,102.93,34.45503833]
[1770123892621,8.7493,102.98,102.93,34.45503833]
[1770123892922,21.16882421,102.98,102.93,34.45503833]
[1770123893319,8.7496,102.97,102.93,34.45503833]
[1770123908836,30.87323359,102.97,102.93,34.45503833]
[1770123912841,30.48609061,102.98,102.93,34.45503833]
[1770123915442,21.73719061,102.98,102.94,31.98378731]
[1770123915644,21.49223904,102.99,102.94,31.98378731]
[1770123916344,21.49223904,102.99,102.94,40.73558731]
[1770123917042,30.24033904,102.99,102.94,31.98378731]
[1770123922644,27.82472261,102.99,102.94,31.98378731]
[1770123922850,2.41561643,102.98,102.94,31.98378731]
[1770123924054,11.16431643,102.98,102.94,31.98378731]
[1770123924255,20.48221658,102.98,102.94,31.98378731]
[1770123924642,2.41561643,102.98,102.94,31.98378731]
[1770123925150,29.16868678,102.99,102.94,31.98378731]
[1770123929252,26.10828683,103.01,102.95,28.65021845]
[1770123929449,28.52390326,103.01,102.95,28.65021845]
[1770123929653,26.10828683,103.01,102.95,28.65021845]
[1770123929949,28.52390326,103.01,102.95,28.65021845]
[1770123930151,11.16111643,103.02,102.96,28.65021845]
[1770123930452,28.40152219,103.02,102.96,28.65021845]
[1770123932753,16.90445907,103.01,102.96,28.65021845]
[1770123932947,28.06546849,103.01,102.96,28.65021845]
[1770123938854,27.79879319,103.01,102.96,28.65021845]
[1770123939742,19.05239319,103.01,102.97,28.65021845]
[1770123943355,8.7454,103.02,102.97,28.65021845]
[1770123944158,11.15920942,103.03,102.98,28.65021845]
[1770123946255,8.7446,103.03,102.98,28.65021845]
[1770123948658,2.41460942,103.04,102.99,28.65021845]
[1770123951360,2.41460942,103.04,102.99,37.39781845]
[1770123951660,2.41460942,103.06,102.99,28.65021845]
[1770123952050,2.41460942,103.06,103.01,26.98988808]
[1770123953657,11.15650942,103.06,103.01,26.98988808]
[1770123953861,18.06628435,103.07,103.02,27.86698072]
[1770123955059,26.80798435,103.07,103.02,27.86698072]
[1770123956862,17.71699841,103.09,103.03,27.86698072]
[1770123957465,2.41460942,103.09,103.04,27.86698072]
[1770123957759,17.71699841,103.11,103.04,27.86698072]
[1770123958160,26.45479841,103.11,103.05,27.86698072]
[1770123958564,2.41460942,103.11,103.05,27.86698072]
[1770123959153,25.72997237,103.13,103.07,27.86698072]
[1770123959656,2.41460942,103.13,103.07,27.86698072]
[1770123959853,2.41460942,103.13,103.07,36.60798072]
[1770123960053,2.41460942,103.13,103.08,27.86698072]
[1770123960566,2.41460942,103.15,103.09,27.86698072]
[1770123960864,2.41460942,103.15,103.1,27.86698072]
[1770123961362,14.09705047,103.16,103.1,27.86698072]
[1770123961363,16.46288673,103.16,103.1,27.86698072]
[1770123961557,2.41460942,103.14,103.1,27.86698072]
[1770123962156,2.41460942,103.15,103.1,27.86698072]
[1770123962654,2.41460942,103.17,103.11,27.86698072]
[1770123964263,14.33158301,103.18,103.12,27.86698072]
[1770123964458,2.41460942,103.17,103.12,27.86698072]
[1770123965060,16.14376149,103.17,103.12,27.86698072]
[1770123965366,2.41460942,103.15,103.1,27.86698072]
[1770123965567,2.41460942,103.17,103.11,27.86698072]
[1770123967069,2.41460942,103.17,103.11,36.60458072]
[1770123967263,2.41460942,103.17,103.12,27.86698072]
[1770123968468,2.41460942,103.17,103.12,36.60368072]
[1770123968664,2.41460942,103.17,103.13,27.86698072]
[1770123970371,15.48069214,103.21,103.14,27.86698072]
[1770123971064,24.20819214,103.23,103.15,30.28159014]
[1770123971270,15.48069214,103.23,103.16,27.86698072]
[1770123972364,2.41460942,103.23,103.17,8.7325]
[1770123972568,2.41460942,103.23,103.18,27.86698072]
[1770123972868,2.41460942,103.24,103.19,27.86698072]
[1770123973068,2.41460942,103.25,103.19,27.86698072]
[1770123973962,2.41460942,103.27,103.2,27.86698072]
[1770123974363,2.41460942,103.23,103.19,27.86698072]
[1770123975067,14.92382463,103.25,103.2,27.86698072]
[1770123975371,2.41460942,103.25,103.2,27.86698072]
[1770123975673,14.92382463,103.27,103.2,27.86698072]
[1770123975971,2.41460942,103.27,103.22,27.86698072]
[1770123976573,2.41460942,103.27,103.23,27.86698072]
[1770123981876,14.39330373,103.27,103.21,27.00447199]
[1770123982377,11.92422036,103.29,103.23,27.00447199]
[1770123982677,2.41460942,103.28,103.23,27.00447199]
[1770123982979,14.33882978,103.28,103.23,27.00447199]
[1770123983480,14.33882978,103.28,103.23,35.73197199]
[1770123985073,2.41460942,103.28,103.24,35.73107199]
[1770123986781,2.41460942,103.28,103.24,27.00447199]
[1770123987175,2.41460942,103.26,103.22,27.00447199]
[1770123989580,11.13960942,103.26,103.22,27.00447199]
[1770123990076,22.46611504,103.26,103.2,27.00447199]
[1770123990380,2.40406665,103.24,103.2,27.00447199]
[1770123992881,2.40406665,103.24,103.2,35.73447199]
[1770123994477,2.40406665,103.26,103.21,35.73337199]
[1770123994676,13.43442107,103.27,103.22,27.00447199]
[1770123995378,2.40406665,103.27,103.22,27.00447199]
[1770123995781,77.80687023,103.29,103.23,27.00447199]
[1770123995977,542.4511,103.35,103.24,135.7464]
[1770123995978,13.40280358,103.33,103.24,135.7464]
[1770123996177,13.40280358,103.35,103.27,27.00447199]
[1770123996383,15.80687023,103.35,103.27,29.40853864]
[1770123996580,15.80687023,103.35,103.27,27.00447199]
[1770123996775,15.80687023,103.35,103.28,27.00447199]
[1770123997177,14.93387783,103.37,103.28,29.40853864]
[1770123997493,2.40406665,103.36,103.29,27.00447199]
[1770123999186,83.96550427,103.37,103.29,27.00447199]
[1770123999385,2.40406665,103.36,103.29,27.00447199]
[1770124000587,25.15428977,103.39,103.31,27.00447199]
[1770124001181,22.75022312,103.39,103.31,27.00447199]
[1770124001386,2.40406665,103.38,103.31,27.00447199]
[1770124001983,2.40406665,103.38,103.32,27.00447199]
[1770124002581,2.40406665,103.4,103.33,8.7189]
[1770124002886,14.78379596,103.41,103.34,27.00447199]
[1770124003282,2.40406665,103.41,103.35,27.00447199]
[1770124003585,2.40406665,103.42,103.35,27.00447199]
[1770124003784,21.13954777,103.42,103.35,27.00447199]
[1770124003985,2.40406665,103.4,103.35,27.00447199]
[1770124004181,2.40406665,103.38,103.33,27.00447199]
[1770124006784,2.40406665,103.36,103.31,27.00447199]
[1770124008287,309.10748414,103.4,103.31,27.00447199]
[1770124008586,2.40406665,103.38,103.31,29.40853864]
[1770124009185,2.40406665,103.38,103.32,8.7196]
[1770124009386,2.40406665,103.36,103.31,27.00447199]
[1770124010989,2.40406665,103.34,103.31,27.00447199]
[1770124012082,16.99164893,103.36,103.31,27.00447199]
[1770124012281,76.63038252,103.38,103.31,27.00447199]
[1770124012485,2.40406665,103.37,103.31,27.00447199]
[1770124012683,11.11976665,103.37,103.31,27.00447199]
[1770124013392,2.40406665,103.35,103.31,27.00447199]
[1770124014588,14.7076485,103.37,103.31,27.00447199]
[1770124014589,2.40406665,103.37,103.31,27.00447199]
[1770124016392,11.11976665,103.37,103.31,27.00447199]
[1770124016592,2.40406665,103.35,103.31,27.00447199]
[1770124017587,11.12166665,103.35,103.31,27.00447199]
[1770124019992,8.7166,103.36,103.31,27.00447199]
[1770124020488,11.12166665,103.35,103.31,27.00447199]
[1770124020795,11.12166665,103.35,103.29,28.33060653]
[1770124021692,8.7185,103.34,103.29,28.33060653]
[1770124021992,8.7185,103.34,103.25,28.33060653]
[1770124021993,2.40406665,103.31,103.25,28.33060653]
[1770124022993,8.7217,103.3,103.25,28.33060653]
[1770124023494,8.7225,103.29,103.25,28.33060653]
[1770124023793,2.40406665,103.29,103.2,2.40406665]
[1770124023992,2.40406665,103.29,103.2,359.60406665]
[1770124024300,8.7244,103.27,103.21,8.7288]
[1770124024494,138.08806665,103.29,103.2,357.2]
[1770124024495,135.684,103.29,103.2,357.2]
[1770124024695,8.725,103.26,103.2,357.2]
[1770124024896,135.6967,103.28,103.2,357.2]
[1770124025394,8.7259,103.25,103.2,357.2]
[1770124025593,26.29922343,103.28,103.2,357.2]
[1770124025893,26.29922343,103.28,103.21,28.33060653]
[1770124026491,26.29922343,103.26,103.16,28.33060653]
[1770124027299,26.29922343,103.25,103.16,28.33060653]
[1770124027495,32.73424429,103.25,103.16,28.33060653]
[1770124028199,26.29922343,103.25,103.16,28.33060653]
[1770124028601,32.73424429,103.25,103.16,28.33060653]
[1770124029098,94.73424429,103.25,103.16,28.33060653]
[1770124029496,94.73424429,103.25,103.17,28.33060653]
[1770124031498,26.29922343,103.24,103.17,28.33060653]
[1770124032598,26.29922343,103.24,103.18,28.33060653]
[1770124034098,26.29922343,103.24,103.16,28.33060653]
[1770124035204,26.29922343,103.22,103.16,28.33060653]
[1770124037505,26.29922343,103.24,103.16,28.33060653]
[1770124038503,26.29922343,103.24,103.17,28.33060653]
[1770124039102,26.29922343,103.26,103.18,28.33060653]
[1770124040598,31.7214782,103.28,103.18,28.33060653]
[1770124040906,25.28645734,103.3,103.2,25.47918614]
[1770124041104,25.28645734,103.3,103.21,25.47918614]
[1770124041304,25.28645734,103.33,103.23,25.47918614]
[1770124041702,25.28645734,103.32,103.23,25.47918614]
[1770124041904,25.28645734,103.32,103.23,34.20648614]
[1770124042104,25.28645734,103.32,103.24,25.47918614]
[1770124042305,25.28645734,103.3,103.24,25.47918614]
[1770124043409,25.28645734,103.3,103.22,25.47918614]
[1770124046810,25.28645734,103.29,103.22,25.47918614]
[1770124047204,25.28645734,103.28,103.22,25.47918614]
[1770124047810,34.01015734,103.28,103.22,25.47918614]
[1770124048012,25.28645734,103.27,103.22,25.47918614]
[1770124049703,25.28645734,103.26,103.19,25.47918614]
[1770124051012,34.01065734,103.27,103.19,25.47918614]
[1770124053913,34.01065734,103.27,103.2,25.47918614]
[1770124054416,8.7234,103.28,103.21,25.47918614]
[1770124056614,8.7243,103.27,103.21,25.47918614]
[1770124057216,25.28645734,103.29,103.21,25.47918614]
[1770124058116,25.28645734,103.28,103.21,25.47918614]
[1770124059716,25.28645734,103.27,103.21,25.47918614]
[1770124061219,25.28645734,103.29,103.21,25.47918614]
[1770124062319,25.28645734,103.29,103.22,25.47918614]
[1770124062816,25.28645734,103.29,103.23,25.47918614]
[1770124063918,25.28645734,103.29,103.23,34.20648614]
[1770124064218,25.28645734,103.29,103.23,25.47918614]
[1770124064619,25.28645734,103.29,103.24,25.47918614]
[1770124065510,25.28645734,103.31,103.25,25.47918614]
[1770124065716,31.72326165,103.37,103.27,25.47918614]
[1770124065917,25.28645734,103.37,103.27,25.47918614]
[1770124066315,25.28645734,103.37,103.29,25.47918614]
[1770124069217,25.28645734,103.36,103.29,25.47918614]
[1770124073720,25.28645734,103.36,103.27,19.38366749]
[1770124074421,17.69947204,103.34,103.27,19.38366749]
[1770124076621,79.69947204,103.34,103.27,19.38366749]
[1770124077422,17.69947204,103.33,103.27,19.38366749]
[1770124077621,17.69947204,103.32,103.25,19.38366749]
[1770124079124,17.69947204,103.31,103.25,19.38366749]
[1770124080324,32.85547635,103.33,103.25,19.38366749]
[1770124080523,17.69947204,103.33,103.25,19.38366749]
[1770124081730,17.69947204,103.32,103.25,19.38366749]
[1770124082125,26.41937204,103.32,103.25,19.38366749]
[1770124083424,26.42037204,103.31,103.25,19.38366749]
[1770124085230,8.7199,103.32,103.25,19.38366749]
[1770124085931,26.41937204,103.32,103.25,19.38366749]
[1770124087732,8.7209,103.31,103.25,19.38366749]
[1770124090237,8.7217,103.3,103.25,19.38366749]
[1770124093735,17.69947204,103.32,103.25,19.38366749]
[1770124094438,2.40101933,103.31,103.25,19.38366749]
[1770124094640,2.40101933,103.29,103.25,19.38366749]
[1770124095930,17.69947204,103.31,103.23,8.7273]
[1770124095931,2.40101933,103.27,103.23,19.38366749]
[1770124099137,2.40101933,103.27,103.22,8.7283]
[1770124099138,17.69947204,103.3,103.24,19.38366749]
[1770124099440,20.10049137,103.3,103.24,19.38366749]
[1770124099632,2.40101933,103.3,103.24,19.38366749]
[1770124099837,2.40101933,103.3,103.24,28.11016749]
[1770124100038,2.40101933,103.3,103.25,19.38366749]
[1770124101241,2.40101933,103.3,103.26,15.24319706]
[1770124105745,2.40101933,103.28,103.22,363.76319706]
[1770124105946,2.40101933,103.28,103.23,15.24319706]
[1770124106342,2.40101933,103.28,103.24,15.24319706]
[1770124108241,14.89463479,103.31,103.25,15.24319706]
[1770124108446,17.29565412,103.31,103.25,15.24319706]
[1770124108849,17.29565412,103.31,103.26,15.24319706]
[1770124113547,17.29565412,103.31,103.22,350.92101933]
[1770124113548,17.29565412,103.29,103.23,15.24319706]
[1770124113749,2.40101933,103.27,103.23,15.24319706]
[1770124114157,14.89463479,103.28,103.18,350.86101933]
[1770124114158,2.40101933,103.25,103.21,15.24319706]
[1770124114357,2.40351958,103.25,103.21,15.24319706]
[1770124115648,2.40351958,103.27,103.21,15.24319706]
[1770124117258,2.40351958,103.27,103.19,2.40351958]
[1770124117259,17.29815437,103.27,103.22,15.24319706]
[1770124117560,17.29815437,103.25,103.2,15.24319706]
[1770124118453,2.40351958,103.25,103.2,15.24319706]
[1770124122660,26.02295437,103.27,103.21,15.24319706]
[1770124123760,2.40351958,103.27,103.22,15.24319706]
[1770124125864,2.40351958,103.27,103.23,15.24319706]
[1770124127160,16.21694581,103.31,103.24,15.24319706]
[1770124127760,16.21694581,103.31,103.25,8.7256]
[1770124128058,16.21694581,103.31,103.25,23.96879706]
[1770124129167,15.89071517,103.29,103.23,15.24319706]
[1770124129757,15.89071517,103.29,103.24,8.7265]
[1770124130559,15.89071517,103.29,103.24,20.23458141]
[1770124132265,15.89071517,103.29,103.24,11.50808141]
[1770124132863,37.89,103.32,103.21,11.53537864]
[1770124132864,13.89256855,103.27,103.21,11.53537864]
[1770124133363,2.40351958,103.25,103.21,11.53537864]
[1770124133558,2.40351958,103.25,103.2,11.53537864]
[1770124137067,2.40351958,103.23,103.18,11.53537864]
[1770124137464,2.40351958,103.21,103.16,11.53537864]
[1770124137663,13.89256855,103.21,103.16,11.53537864]
[1770124140264,2.40351958,103.21,103.16,20.26877864]
[1770124140560,2.40351958,103.21,103.17,11.53537864]
[1770124141573,13.89256855,103.21,103.15,11.53537864]
[1770124142073,2.40351958,103.19,103.15,11.53537864]
[1770124142275,2.40351958,103.19,103.13,11.53537864]
[1770124142966,13.89256855,103.19,103.13,11.53537864]
[1770124143170,13.89256855,103.17,103.11,11.53537864]
[1770124143574,2.40351958,103.15,103.11,11.53537864]
[1770124144367,20.22174897,103.17,103.11,11.53537864]
[1770124144775,11.32814235,103.16,103.11,11.53537864]
[1770124145274,11.32814235,103.18,103.11,11.53537864]
[1770124145774,19.94404368,103.17,103.11,11.53537864]
[1770124147675,11.21144368,103.17,103.11,11.53537864]
[1770124148177,19.40496496,103.19,103.12,11.53537864]
[1770124148781,10.40860263,103.17,103.12,11.53537864]
[1770124150370,19.14140263,103.17,103.12,11.53537864]
[1770124150679,10.20373999,103.16,103.1,11.53537864]
[1770124150878,18.93743999,103.16,103.1,11.53537864]
[1770124151079,8.7337,103.16,103.1,11.53537864]
[1770124152683,8.7343,103.15,103.1,11.53537864]
[1770124155378,8.7336,103.16,103.1,8.7382]
[1770124155579,145.89360106,103.19,103.11,11.53537864]
[1770124155781,10.07790106,103.18,103.11,11.53537864]
[1770124156382,8.7326,103.17,103.11,11.53537864]
[1770124157783,10.07790106,103.18,103.12,11.53537864]
[1770124160381,9.5120769,103.17,103.12,11.53537864]
[1770124162880,9.5120769,103.17,103.1,10.22580744]
[1770124166380,2.40837495,103.15,103.1,10.22580744]
[1770124168485,11.34123374,103.15,103.1,10.22580744]
[1770124169086,2.40837495,103.13,103.08,10.22580744]
[1770124169390,11.25307091,103.13,103.08,10.22580744]
[1770124176400,8.84469596,103.13,103.08,10.22580744]
[1770124177994,2.40901909,103.14,103.08,10.22580744]
[1770124179003,10.72159946,103.16,103.09,10.22580744]
[1770124179197,8.31258037,103.15,103.09,10.22580744]
[1770124179700,8.31258037,103.15,103.1,10.22580744]
[1770124180100,2.40901909,103.18,103.11,10.22580744]
[1770124180798,2.40901909,103.18,103.13,10.22580744]
[1770124181200,2.40901909,103.18,103.13,18.96160744]
[1770124181396,2.40901909,103.2,103.14,10.22580744]
[1770124181602,10.4299728,103.2,103.14,10.22580744]
[1770124182003,8.02095371,103.19,103.14,10.22580744]
[1770124182497,2.40901909,103.2,103.14,8.7351]
[1770124182695,2.40901909,103.2,103.15,10.22580744]
[1770124183198,2.40901909,103.2,103.15,18.95980744]
[1770124183399,2.40901909,103.2,103.15,10.22580744]
[1770124186701,7.71642673,103.23,103.16,12.63482653]
[1770124188100,10.05288267,103.22,103.16,10.22580744]
[1770124188401,7.64386358,103.21,103.16,10.22580744]
[1770124188605,7.74109254,103.19,103.14,10.22580744]
[1770124190206,64.40901909,103.2,103.14,10.22580744]
[1770124190809,2.40901909,103.2,103.14,10.22580744]
[1770124191006,10.00726599,103.2,103.14,10.22580744]
[1770124193611,2.40901909,103.2,103.14,10.22580744]
[1770124193811,9.70766129,103.22,103.14,10.22580744]
[1770124194309,9.70766129,103.22,103.15,8.43193422]
[1770124194705,9.65109035,103.2,103.15,8.43193422]
[1770124198312,9.65109035,103.2,103.13,350.0]
[1770124198313,2.40901909,103.18,103.13,8.43193422]
[1770124203920,17.92074456,103.18,103.13,8.43193422]
[1770124205823,11.14241909,103.16,103.11,8.43193422]
[1770124208819,8.7344,103.15,103.11,8.43193422]
[1770124213824,2.40901909,103.16,103.11,8.43193422]
[1770124214024,8.68470254,103.16,103.11,8.43193422]
[1770124214330,8.68470254,103.16,103.09,361.2793]
[1770124214331,8.68470254,103.14,103.09,8.43193422]
[1770124220329,5.98473989,103.13,103.08,8.7401]
[1770124220533,8.7328,103.17,103.05,7.73118301]
[1770124220534,2.40901909,103.1,103.05,7.73118301]
[1770124221436,5.98473989,103.11,103.06,16.47278301]
[1770124221730,2.40901909,103.12,103.07,7.73118301]
[1770124222125,2.40901909,103.12,103.07,16.47208301]
[1770124222326,5.83653657,103.11,103.07,7.73118301]
[1770124222531,2.40901909,103.1,103.05,7.73118301]
[1770124222731,2.40901909,103.1,103.05,16.47328301]
[1770124222935,2.40901909,103.1,103.06,7.73118301]
[1770124223332,2.40901909,103.1,103.06,16.47238301]
[1770124223636,8.19802826,103.1,103.06,8.7412]
[1770124225737,8.19802826,103.1,103.05,7.73118301]
[1770124226729,7.99258217,103.12,103.06,7.73118301]
[1770124226930,2.40901909,103.12,103.06,7.73118301]
[1770124228037,5.58356308,103.14,103.07,7.73118301]
[1770124228339,2.40901909,103.12,103.07,7.73118301]
[1770124229034,7.83597752,103.12,103.07,7.73118301]
[1770124234141,5.42695843,103.12,103.07,7.73118301]
[1770124234743,5.42695843,103.12,103.07,16.47218301]
[1770124235237,2.40901909,103.13,103.08,7.73118301]
[1770124235443,2.40901909,103.13,103.08,16.47118301]
[1770124235643,2.40901909,103.13,103.08,7.73118301]
[1770124236240,5.26262603,103.14,103.08,7.73118301]
[1770124236437,7.67137295,103.14,103.08,7.73118301]
[1770124239747,7.4801604,103.16,103.09,7.73118301]
[1770124240147,7.4801604,103.16,103.1,7.73118301]
[1770124242049,4.97086623,103.15,103.1,7.73118301]
[1770124243249,11.14284692,103.16,103.1,7.73118301]
[1770124243655,15.98346745,103.16,103.1,7.73118301]
[1770124243953,8.7344,103.15,103.1,7.73118301]
[1770124249759,7.24936745,103.16,103.1,7.73118301]
[1770124251558,7.24936745,103.16,103.1,16.46948301]
[1770124254066,7.24936745,103.16,103.11,8.7376]
[1770124254865,6.8696155,103.18,103.12,7.00738637]
[1770124255366,4.46086858,103.17,103.12,8.7368]
[1770124255662,2.40874692,103.14,103.08,7.00738637]
[1770124255858,6.83759917,103.14,103.08,7.00738637]
[1770124256356,4.42577296,103.13,103.08,7.00738637]
[1770124256562,6.83451988,103.12,103.06,7.00738637]
[1770124260461,4.39513383,103.11,103.06,7.00738637]
[1770124261366,6.77374419,103.1,103.04,15.75078637]
[1770124261559,6.77374419,103.1,103.05,7.00738637]
[1770124261965,4.36499727,103.1,103.05,7.00738637]
[1770124262169,6.77374419,103.12,103.05,7.00738637]
[1770124263168,4.36499727,103.12,103.06,7.00738637]
[1770124266770,6.73626768,103.11,103.06,7.00738637]
[1770124269068,4.34477408,103.1,103.04,7.00738637]
[1770124269268,4.34477408,103.06,103.0,7.00738637]
[1770124269462,2.40874692,103.05,103.0,7.00738637]
[1770124269672,6.7256775,103.08,103.01,7.00738637]
[1770124271264,15.4665775,103.08,103.01,7.00738637]
[1770124271464,15.4665775,103.08,103.03,7.00738637]
[1770124274374,2.40874692,103.1,103.04,7.00738637]
[1770124274567,5.32369591,103.1,103.04,7.00738637]
[1770124275378,14.06239591,103.1,103.04,7.00738637]
[1770124276879,8.7395,103.09,103.04,7.00738637]
[1770124278479,14.06229591,103.1,103.04,7.00738637]
[1770124278881,14.06229591,103.1,103.05,7.00738637]
[1770124279972,62.0,103.12,103.05,7.00738637]
[1770124279973,11.14654692,103.11,103.06,7.00738637]
[1770124280169,13.88329789,103.11,103.06,7.00738637]
[1770124281180,8.7386,103.1,103.06,7.00738637]
[1770124282781,5.36472003,103.13,103.06,7.00738637]
[1770124283178,8.7377,103.11,103.06,7.00738637]
[1770124283382,2.93431833,103.1,103.04,379.89452938]
[1770124284385,8.7394,103.09,103.04,379.89452938]
[1770124285783,2.93431833,103.1,103.04,379.89452938]
[1770124286178,2.40874692,103.09,103.04,388.63802938]
[1770124286785,2.40874692,103.09,103.04,15.69802938]
[1770124287086,2.40874692,103.09,103.05,6.95452938]
[1770124287281,2.93431833,103.1,103.05,6.95452938]
[1770124288581,2.93431833,103.1,103.05,15.69712938]
[1770124289787,11.72416443,103.12,103.07,6.95452938]
[1770124289982,2.40874692,103.13,103.07,6.95452938]
[1770124290285,5.39591135,103.13,103.07,6.95452938]